fUST/lending_fUST_20251231
["ID","MTS","AMOUNT","RATE_DAILY","PERIOD"]
[400163775,1767162644692,-14885.98,0.000207,2]
[400163776,1767162644701,-1041.66666667,0.00020704,2]
[400163777,1767162644711,-6831.4225511,0.00020708,2]
[400163778,1767162644720,-1000.0,0.00020986,2]
[400163779,1767162644730,-791.0,0.00020986,2]
[400163780,1767162644740,-10000.0,0.00021,5]
[400163781,1767162644750,-30030.19718622,0.00021,2]
[400163782,1767162644761,-500.0,0.00021312,2]
[400163783,1767162644770,-2918.69,0.00021393,30]
[400163784,1767162644780,-186.0,0.00021454,2]
[400163785,1767162644789,-107962.80874582,0.000215,2]
[400163786,1767162644798,-609.65564323,0.00021613,2]
[400163787,1767162644807,-500.0,0.00021917,2]
[400163788,1767162644816,-503.00820269,0.00021917,2]
[400163789,1767162644826,-506.55449777,0.00021917,2]
[400163790,1767162644835,-277.46495324,0.00021917,2]
[400163791,1767162644845,-500.0,0.00021917,2]
[400163792,1767162644854,-181.58814641,0.00021917,2]
[400163793,1767162644864,-500.0,0.00021917,2]
[400163794,1767162644873,-419.55533198,0.00021917,2]
[400163795,1767162644883,-572.01801726,0.00021917,2]
[400163796,1767162644892,-793.64,0.00021917,2]
[400163797,1767162644902,-224.92658771,0.00021917,2]
[400163798,1767162644912,-3532.14,0.00021917,2]
[400163799,1767162644921,-1348.54,0.00021917,2]
[400163800,1767162644931,-500.0,0.00021917,2]
[400163801,1767162644941,-500.0,0.00021917,2]
[400163802,1767162644951,-388.31492034,0.00021917,2]
[400163803,1767162644960,-181.299206,0.00021918,2]
[400163804,1767162644970,-150.0,0.00021918,2]
[400163805,1767162644980,-160.73,0.00022,7]
[400163806,1767162644989,-3242.99,0.00022131,30]
[400163807,1767162644999,-422.18560449,0.00022191,2]
[400163808,1767162645009,-510.62079878,0.00022191,2]
[400163809,1767162645019,-518.18840294,0.00022191,2]
[400163810,1767162645029,-793.64,0.00022191,2]
[400163811,1767162645039,-3532.14,0.00022191,2]
[400163812,1767162645052,-1348.54,0.00022191,2]
[400163813,1767162645062,-500.0,0.00022191,2]
[400163814,1767162645072,-562.74320886,0.00022191,2]
[400163815,1767162645082,-1874.0,0.00022198,2]
[400163816,1767162645091,-500.0,0.00022434,2]
[400163817,1767162645100,-793.64,0.00022465,2]
[400163818,1767162645110,-3532.14,0.00022465,2]
[400163819,1767162645120,-1348.54,0.00022465,2]
[400163820,1767162645131,-500.0,0.00022465,2]
[400163821,1767162645140,-300.0,0.00022466,2]
[400163822,1767162645150,-166.61935698,0.00022603,7]
[400163823,1767162645159,-9574.92946249,0.00022647,2]
[400163824,1767162645169,-219.53,0.000227,2]
[400163825,1767162645179,-166.25,0.000227,7]
[400163826,1767162645189,-1533.95,0.000227,14]
[400163827,1767162645198,-793.64,0.00022739,2]
[400163828,1767162645208,-3532.14,0.00022739,2]
[400163829,1767162645217,-1348.54,0.00022739,2]
[400163830,1767162645227,-472.89680193,0.00022739,2]
[400163831,1767162645237,-711603.04446346,0.0002277,2]
[400163832,1767162645247,-2000.0,0.00022857,7]
[400163833,1767162645256,-528.66254772,0.0002287,2]
[400163834,1767162645266,-8028.51183462,0.00023,2]
[400163835,1767162645275,-1041.66666667,0.00023,3]
[400163836,1767162645285,-793.64,0.00023013,2]
[400163837,1767162645293,-3532.14,0.00023013,2]
[400163838,1767162645301,-1348.54,0.00023013,2]
[400163839,1767162645310,-425.96070951,0.00023014,2]
[400163840,1767162645318,-204.46514621,0.00023021,2]
[400163841,1767162645327,-245.38863424,0.00023021,2]
[400163842,1767162645336,-228.57292632,0.00023061,2]
[400163843,1767162645345,-207.73731504,0.00023079,2]
[400163844,1767162645354,-409.25457323,0.00023079,2]
[400163845,1767162645363,-368.3289734,0.00023079,2]
[400163846,1767162645372,-208.34988278,0.00023079,2]
[400163847,1767162645381,-1000.0,0.00023085,10]
[400163848,1767162645508,-1000.0,0.00023085,10]
[400163849,1767162645518,-6831.4225511,0.00023105,2]
[400163850,1767162645528,-186.0,0.00023196,2]
[400163851,1767162645537,-573.9786782,0.00023208,2]
[400163852,1767162645547,-245.83991747,0.00023208,2]
[400163853,1767162645557,-793.64,0.00023287,2]
[400163854,1767162645567,-3532.14,0.00023287,2]
[400163855,1767162645577,-1348.54,0.00023287,2]
[400163856,1767162645587,-793.64,0.00023561,2]
[400163857,1767162645597,-3532.14,0.00023561,2]
[400163858,1767162645606,-1348.54,0.00023561,2]
[400163859,1767162645615,-14885.98,0.000236,2]
[400163860,1767162645625,-667.41249364,0.00023613,2]
[400163861,1767162645636,-500.0,0.00023615,2]
[400163862,1767162645646,-200.90977335,0.00023835,2]
[400163863,1767162645656,-793.64,0.00023835,2]
[400163864,1767162645665,-3532.14,0.00023835,2]
[400163865,1767162645675,-1348.54,0.00023835,2]
[400163866,1767162645684,-503.29570748,0.000239,2]
[400163867,1767162645695,-503.2957074,0.000239,2]
[400163868,1767162645705,-503.2957074,0.000239,2]
[400163869,1767162645714,-503.2957074,0.000239,2]
[400163870,1767162645724,-503.2957074,0.000239,2]
[400163871,1767162645734,-503.2957074,0.000239,2]
[400163872,1767162645743,-503.2957074,0.000239,2]
[400163873,1767162645753,-503.2957074,0.000239,2]
[400163874,1767162645762,-503.2957074,0.000239,2]
[400163875,1767162645770,-503.2957074,0.000239,2]
[400163876,1767162645779,-1733.59881032,0.00024,2]
[400163877,1767162645788,-465.14283166,0.00024,2]
[400163878,1767162645797,-793.64,0.00024109,2]
[400163879,1767162645807,-3532.14,0.00024109,2]
[400163880,1767162645817,-1348.54,0.00024109,2]
[400163881,1767162645827,-91463.92439064,0.00024142,2]
[400163882,1767162645836,-160.73,0.000243,7]
[400163883,1767162645846,-793.64,0.00024383,2]
[400163884,1767162645856,-3532.14,0.00024383,2]
[400163885,1767162645865,-1348.54,0.00024383,2]
[400163886,1767162645875,-113958.03127805,0.0002465,2]
[400163887,1767162645884,-793.64,0.00024657,2]
[400163888,1767162645893,-3532.14,0.00024657,2]
[400163889,1767162645901,-1348.54,0.00024657,2]
[400163890,1767162645911,-151.50509252,0.00024658,2]
[400163891,1767162645921,-8846.86,0.000247,3]
[400163892,1767162645931,-1419.12334533,0.00024734,17]
[400163893,1767162645941,-500.0,0.00024795,2]
[400163894,1767162645951,-5447.0,0.00024833,2]
[400163895,1767162645960,-627.0,0.0002484,2]
[400163896,1767162645970,-2156.0,0.0002484,2]
[400163897,1767162645981,-1364.0,0.0002484,2]
[400163899,1767162645991,-416.0,0.0002484,2]
[400163900,1767162646001,-416.0,0.0002484,2]
[400163901,1767162646009,-298.0,0.0002484,2]
[400163902,1767162646019,-297.588,0.0002484,2]
[400163903,1767162646029,-793.64,0.00024931,2]
[400163904,1767162646039,-3532.14,0.00024931,2]
[400163905,1767162646051,-1348.54,0.00024931,2]
[400163906,1767162646062,-186.0,0.00024938,2]
[400163907,1767162646071,-166.0,0.00025,7]
[400163908,1767162646081,-184.0,0.00025,7]
[400163909,1767162646091,-10392.29269205,0.00025,2]
[400163910,1767162646100,-27566.9906356,0.00025,15]
[400163912,1767162646110,-151.0,0.00025,7]
[400163913,1767162646120,-151.0,0.00025,7]
[400163914,1767162646131,-156.562526,0.00025,7]
[400163915,1767162646141,-579.57875916,0.000252,5]
[400163916,1767162646151,-179.92802879,0.00025204,2]
[400163917,1767162646161,-793.64,0.00025205,2]
[400163919,1767162646171,-3532.14,0.00025205,2]
[400163921,1767162646180,-1348.54,0.00025205,2]
[400163922,1767162646190,-1000.0,0.00025393,10]
[400163923,1767162646200,-1000.0,0.00025393,10]
[400163924,1767162646210,-579.0,0.00025393,10]
[400163925,1767162646220,-900.0,0.00025469,3]
[400163926,1767162646230,-1080.36507781,0.0002547,2]
[400163927,1767162646240,-793.64,0.00025479,2]
[400163928,1767162646249,-3532.14,0.00025479,2]
[400163929,1767162646259,-1348.54,0.00025479,2]
[400163930,1767162646269,-14885.98,0.000255,2]
[400163931,1767162646279,-1000.0,0.000255,2]
[400163932,1767162646289,-6831.4225511,0.00025503,2]
[400163933,1767162646299,-725.16934405,0.00025613,2]
[400163934,1767162646308,-2000.0,0.00025714,7]
[400163935,1767162646318,-793.64,0.00025753,2]
[400163936,1767162646328,-3532.14,0.00025753,2]
[400163937,1767162646337,-1348.54,0.00025753,2]
[400163939,1767162646347,-151.50260762,0.00025761,2]
[400163940,1767162646357,-257.39953178,0.00025761,2]
[400163941,1767162646366,-151.0,0.00025761,2]
[400163942,1767162646376,-250.0,0.00025761,2]
[400163943,1767162646386,-250.0,0.00025761,2]
[400163944,1767162646395,-514.84070869,0.00025761,2]
[400163945,1767162646406,-250.0,0.00025761,2]
[400163946,1767162646415,-250.0,0.00025761,2]
[400163947,1767162646425,-250.0,0.00025761,2]
[400163948,1767162646434,-250.0,0.00025761,2]
[400163949,1767162646444,-2436.59773527,0.00025761,2]
[400163950,1767162646453,-151.0,0.00025761,2]
[400163951,1767162646464,-1000.0,0.00025761,2]
[400163952,1767162646474,-250.0,0.00025761,2]
[400163953,1767162646484,-151.0,0.00025761,2]
[400163954,1767162646494,-500.0,0.00025761,2]
[400163955,1767162646505,-250.0,0.00025761,2]
[400163956,1767162646514,-151.0,0.00025761,2]
[400163957,1767162646524,-500.0,0.00025761,2]
[400163958,1767162646533,-250.0,0.00025761,2]
[400163959,1767162646542,-151.0,0.00025761,2]
[400163960,1767162646552,-500.0,0.00025761,2]
[400163961,1767162646562,-500.0,0.00025761,2]
[400163962,1767162646572,-151.0,0.00025761,2]
[400163963,1767162646581,-500.0,0.00025761,2]
[400163964,1767162646591,-151.0,0.00025761,2]
[400163965,1767162646600,-500.0,0.00025761,2]
[400163966,1767162646610,-151.0,0.00025761,2]
[400163967,1767162646619,-500.0,0.00025761,2]
[400163968,1767162646628,-151.0,0.00025761,2]
[400163969,1767162646638,-500.0,0.00025761,2]
[400163970,1767162646647,-151.0,0.00025761,2]
[400163971,1767162646657,-500.0,0.00025761,2]
[400163972,1767162646667,-151.0,0.00025761,2]
[400163973,1767162646675,-151.0,0.00025761,2]
[400163974,1767162646685,-151.0,0.00025761,2]
[400163975,1767162646695,-500.0,0.00025761,2]
[400163976,1767162646704,-162.62076672,0.00025761,2]
[400163977,1767162646714,-500.0,0.00025761,2]
[400163978,1767162646723,-151.0,0.00025761,2]
[400163979,1767162646732,-151.0,0.00025761,2]
[400163980,1767162646741,-500.0,0.00025761,2]
[400163981,1767162646751,-151.0,0.00025761,2]
[400163982,1767162646761,-500.0,0.00025761,2]
[400163983,1767162646770,-500.0,0.00025761,2]
[400163984,1767162646779,-160.73,0.000258,7]
[400163985,1767162646788,-166.0,0.0002589,7]
[400163986,1767162646797,-236.53722422,0.0002592,18]
[400163987,1767162646807,-200.0,0.00025999,2]
[400163988,1767162646816,-39750.25710912,0.00026,10]
[400163989,1767162646826,-1041.66666667,0.00026,10]
[400163990,1767162646837,-529.34920278,0.00026,2]
[400163991,1767162646846,-101649.7840715,0.00026,30]
[400163992,1767162646856,-19489.81,0.00026,2]
[400163993,1767162646865,-161.0,0.00026,5]
[400163994,1767162646875,-1041.66666667,0.00026,30]
[400163995,1767162646884,-156.190121,0.00026,7]
[400163996,1767162646893,-156.190121,0.00026,7]
[400163997,1767162646903,-156.190121,0.00026,7]
[400163998,1767162646912,-156.190121,0.00026,7]
[400163999,1767162646922,-793.64,0.00026027,2]
[400164000,1767162646931,-3532.14,0.00026027,2]
[400164001,1767162646940,-1348.54,0.00026027,2]
[400164002,1767162646950,-500.0,0.00026035,2]
[400164003,1767162646959,-793.64,0.00026301,2]
[400164004,1767162646968,-3532.14,0.00026301,2]
[400164005,1767162646978,-1348.54,0.00026301,2]
[400164006,1767162646987,-151.0,0.00026309,2]
[400164007,1767162646998,-533.88981491,0.00026309,2]
[400164008,1767162647007,-9574.92946249,0.00026358,2]
[400164009,1767162647017,-166.25,0.000264,7]
[400164010,1767162647027,-1533.95,0.000265,14]
[400164011,1767162647036,-162.4,0.000265,7]
[400164012,1767162647047,-793.64,0.00026575,2]
[400164013,1767162647058,-3532.14,0.00026575,2]
[400164014,1767162647068,-1348.54,0.00026575,2]
[400164015,1767162647078,-1808.2093343,0.00026661,2]
[400164016,1767162647088,-912.947379,0.00026676,2]
[400164017,1767162647098,-186.0,0.0002668,2]
[400164018,1767162647107,-726.0,0.00026688,3]
[400164019,1767162647117,-726.0,0.00026688,3]
[400164020,1767162647127,-726.0,0.00026688,3]
[400164021,1767162647136,-151.0,0.00026688,7]
[400164022,1767162647146,-158.312179,0.00026688,7]
[400164023,1767162647156,-8846.86,0.000267,3]
[400164024,1767162647166,-1041.66666667,0.000268,30]
[400164025,1767162647176,-793.64,0.00026849,2]
[400164026,1767162647186,-3532.14,0.00026849,2]
[400164027,1767162647196,-1348.54,0.00026849,2]
[400164028,1767162647206,-553.64373807,0.00026857,2]
[400164029,1767162647215,-200.0,0.00026997,2]
[400164030,1767162647225,-572154.19240279,0.00026998,2]
[400164031,1767162647235,-204.9308416,0.00026999,2]
[400164032,1767162647245,-203.05,0.00027,2]
[400164033,1767162647255,-1456.48795005,0.00027,2]
[400164034,1767162647265,-99794.52422662,0.00027,7]
[400164035,1767162647804,-3e-08,0.00012329,2]
[400164036,1767162647815,-1090.35999997,0.00012329,2]
[400164037,1767162647825,-14972.01313753,0.00027,7]
[400164038,1767162649061,-2925.53479464,0.00027,7]
[400164039,1767162684654,500.0,0.00011514,2]
[400164040,1767162684688,500.0,0.00011514,2]
[400164041,1767162684730,500.0,0.00011514,2]
[400164042,1767162684771,500.0,0.00011514,2]
[400164043,1767162684804,467.09878316,0.00011514,2]
[400164044,1767162684844,500.0,0.00011514,2]
[400164045,1767162684911,500.0,0.00011514,2]
[400164046,1767162684952,500.0,0.00011514,2]
[400164047,1767162685013,500.0,0.00011514,2]
[400164048,1767162685056,500.0,0.00011514,2]
[400164049,1767162685099,622.20520447,0.00011514,2]
[400164050,1767162685145,500.0,0.00011514,2]
[400164051,1767162685183,500.0,0.00011514,2]
[400164052,1767162685241,500.0,0.00011514,2]
[400164053,1767162685277,500.0,0.00011514,2]
[400164054,1767162685322,500.0,0.00011514,2]
[400164055,1767162685353,500.0,0.00011514,2]
[400164056,1767162692617,207.35873939,0.00011513,2]
[400164057,1767162738787,-420.90369427,0.00011513,2]
[400164058,1767162745156,311.73,0.0001,2]
[400164059,1767162747207,311.73,0.000102,2]
[400164060,1767162749752,311.73,0.000104,2]
[400164061,1767162751977,311.73,0.000106,2]
[400164062,1767162757865,311.73,0.000108,2]
[400164063,1767162759817,311.73,0.00011,2]
[400164064,1767162760954,630.79775075,0.00011383,2]
[400164065,1767162828888,-318.08281055,0.00011512,2]
[400164066,1767162828915,-20.05616392,0.00011512,2]
[400164067,1767162830938,-300.0,0.00011512,2]
[400164068,1767162832571,-318.98366305,0.00011512,2]
[400164069,1767162834051,-346.55133339,0.00011512,2]
[400164070,1767162835576,-243.91098713,0.00011512,2]
[400164071,1767162835601,-108.51344545,0.00011512,2]
[400164072,1767162837713,-391.48655455,0.00011512,2]
[400164073,1767162837872,-161.94362483,0.00011512,2]
[400164074,1767162841633,-442.26531537,0.00011512,2]
[400164075,1767162843197,-237.53,0.00011511,2]
[400164080,1767162845960,-62.47,0.00011511,2]
[400164081,1767162845985,-477.44987059,0.00011512,2]
[400164082,1767162848750,-147.8433367,0.00011512,2]
[400164083,1767162848776,-281.83007064,0.00011512,2]
[400164084,1767162850239,-218.16992936,0.00011512,2]
[400164085,1767162850266,-122.16726803,0.00011512,2]
[400164086,1767162853984,-316.69797374,0.00011512,2]
[400164088,1767162855596,-360.90074197,0.00011512,2]
[400164089,1767162857181,-429.73616375,0.00011512,2]
[400164090,1767162857207,-199.14235025,0.00011512,2]
[400164091,1767162858816,5000.0,0.00011502,2]
[400164092,1767162859326,-227.19384157,0.00011512,2]
[400164093,1767162861360,-151.88,0.00011512,2]
[400164094,1767162862931,-373.18935983,0.00011512,2]
[400164095,1767162864692,-278.09659584,0.00011512,2]
[400164096,1767162864714,-97.00272319,0.00011512,2]
[400164097,1767162866812,-171.12242898,0.00011512,2]
[400164098,1767162869778,-40.73858785,0.00011512,2]
[400164099,1767162869803,-439.36248573,0.00011512,2]
[400164100,1767162872560,-500.0,0.00011512,2]
[400164101,1767162874627,1515.41462466,0.00011502,2]
[400164102,1767162875728,-187.84639568,0.00011512,2]
[400164103,1767162878380,-102.29326608,0.00011512,2]
[400164104,1767162878407,-291.8784356,0.00011512,2]
[400164105,1767162881366,-312.86163821,0.00011512,2]
[400164106,1767162886281,-173.31490018,0.00011512,2]
[400164107,1767162888422,-157.69678919,0.00011512,2]
[400164108,1767162891197,-175.77431166,0.00011512,2]
[400164109,1767162893183,-117.97607265,0.00011512,2]
[400164110,1767162893207,-71.56022035,0.00011512,2]
[400164111,1767162896387,-291.18474163,0.00011512,2]
[400164112,1767162897615,2091.2020296,0.00011502,2]
[400164113,1767162897854,-184.83391508,0.00011512,2]
[400164114,1767162901631,-288.64522684,0.00011511,2]
[400164117,1767162906165,1393.39334574,0.00011502,2]
[400164118,1767162906206,674.53012508,0.00011502,2]
[400164125,1767162923010,764.66388355,0.00011502,2]
[400164131,1767162972988,999.0,0.00010959,2]
[400164136,1767163009576,1586.9666071,0.00010512,2]
[400164137,1767163034454,151.0,0.000115,2]
[400164142,1767163080210,177.12,8.991e-05,2]
[400164149,1767163201716,-1200.0,0.0001151,2]
[400164150,1767163201747,-300.0,0.0001151,2]
[400164151,1767163201777,-300.0,0.0001151,2]
[400164152,1767163201993,300.0,0.0001151,2]
[400164153,1767163202066,300.0,0.0001151,2]
[400164155,1767163205170,582.0,0.0001151,2]
[400164156,1767163208326,300.0,0.0001151,2]
[400164157,1767163210075,1200.0,0.0001151,2]
[400164158,1767163216817,-331.64773259,0.00011511,2]
[400164159,1767163256636,500.0,0.0001151,2]
[400164160,1767163257236,500.0,0.0001151,2]
[400164161,1767163268875,500.0,0.0001151,2]
[400164162,1767163272697,500.0,0.0001151,2]
[400164163,1767163279899,500.0,0.0001151,2]
[400164164,1767163279948,500.0,0.0001151,2]
[400164165,1767163280004,500.0,0.0001151,2]
[400164166,1767163280064,382.82020362,0.0001151,2]
[400164167,1767163290765,500.0,0.0001151,2]
[400164168,1767163297732,500.0,0.0001151,2]
[400164169,1767163297797,500.0,0.0001151,2]
[400164170,1767163297848,407.97755153,0.0001151,2]
[400164171,1767163301419,500.0,0.0001151,2]
[400164172,1767163303049,430.351,0.00011283,2]
[400164173,1767163306713,500.0,0.0001151,2]
[400164174,1767163306762,537.30646022,0.0001151,2]
[400164175,1767163309426,500.0,0.0001151,2]
[400164176,1767163316467,638.65982707,0.0001151,2]
[400164177,1767163317337,8861.35017293,0.00011511,2]
[400164178,1767163317361,10000.01,0.00011511,2]
[400164179,1767163317387,10000.01,0.00011511,2]
[400164180,1767163317410,10000.01,0.00011511,2]
[400164181,1767163317433,10000.01,0.00011511,2]
[400164182,1767163317455,1138.60982707,0.00011511,2]
[400164183,1767163319418,500.0,0.0001151,2]
[400164184,1767163319791,500.0,0.0001151,2]
[400164185,1767163319827,367.82654514,0.0001151,2]
[400164186,1767163322712,300.0,0.0001151,2]
[400164187,1767163323054,300.0,0.0001151,2]
[400164188,1767163327216,500.0,0.0001151,2]
[400164192,1767163382639,300.0,0.0001151,2]
[400164194,1767163393286,1200.0,0.0001151,2]
[400164200,1767163442503,300.0,0.0001151,2]
[400164223,1767163465578,507.1640978,0.00010512,2]
[400164224,1767163470447,4086.40952999,0.00011511,2]
[400164225,1767163470473,298.75115083,0.00011511,2]
[400164239,1767163501377,300.0,0.0001151,2]
[400164240,1767163501970,300.0,0.0001151,2]
[400164241,1767163502166,300.0,0.0001151,2]
[400164247,1767163508379,300.0,0.0001151,2]
[400164248,1767163509997,155.0,0.0001151,2]
[400164252,1767163517708,5000.0,0.00011511,2]
[400164270,1767163552190,10000.01,0.00010512,2]
[400164271,1767163552217,10000.01,0.00010512,2]
[400164272,1767163552244,9030.8417171,0.00010512,2]
[400164295,1767163688313,-300.0,0.00011509,2]
[400164296,1767163693997,1200.0,0.00011509,2]
[400164297,1767163711850,500.0,0.00011509,2]
[400164298,1767163711886,500.0,0.00011509,2]
[400164299,1767163711921,500.0,0.00011509,2]
[400164300,1767163711970,500.0,0.00011509,2]
[400164301,1767163712004,500.0,0.00011509,2]
[400164302,1767163712040,500.0,0.00011509,2]
[400164303,1767163712078,500.0,0.00011509,2]
[400164304,1767163712110,500.0,0.00011509,2]
[400164305,1767163712140,178.77899995,0.00011509,2]
[400164306,1767163712179,500.0,0.00011509,2]
[400164307,1767163712214,500.0,0.00011509,2]
[400164308,1767163712246,500.0,0.00011509,2]
[400164309,1767163712285,411.88676048,0.00011509,2]
[400164310,1767163712316,281.10554693,0.00011509,2]
[400164311,1767163712359,500.0,0.00011509,2]
[400164312,1767163712390,500.0,0.00011509,2]
[400164313,1767163712420,500.0,0.00011509,2]
[400164314,1767163712468,500.0,0.00011509,2]
[400164315,1767163712503,500.0,0.00011509,2]
[400164316,1767163712539,500.0,0.00011509,2]
[400164317,1767163712572,500.0,0.00011509,2]
[400164318,1767163712607,128.23869264,0.00011509,2]
[400164319,1767163712633,371.76130736,0.00011509,2]
[400164320,1767163712669,500.0,0.00011509,2]
[400164321,1767163712699,500.0,0.00011509,2]
[400164322,1767163712733,500.0,0.00011509,2]
[400164323,1767163712769,500.0,0.00011509,2]
[400164324,1767163712802,500.0,0.00011509,2]
[400164325,1767163712834,500.0,0.00011509,2]
[400164326,1767163712872,500.0,0.00011509,2]
[400164327,1767163712919,500.0,0.00011509,2]
[400164328,1767163712948,500.0,0.00011509,2]
[400164329,1767163712984,500.0,0.00011509,2]
[400164330,1767163713013,500.0,0.00011509,2]
[400164331,1767163713051,500.0,0.00011509,2]
[400164332,1767163713082,500.0,0.00011509,2]
[400164333,1767163713112,500.0,0.00011509,2]
[400164334,1767163713150,500.0,0.00011509,2]
[400164335,1767163713180,500.0,0.00011509,2]
[400164336,1767163713209,500.0,0.00011509,2]
[400164337,1767163713240,500.0,0.00011509,2]
[400164338,1767163713280,500.0,0.00011509,2]
[400164339,1767163713311,128.24869264,0.00011509,2]
[400164340,1767163713336,371.75130736,0.00011509,2]
[400164341,1767163713367,500.0,0.00011509,2]
[400164342,1767163713531,500.0,0.00011509,2]
[400164343,1767163713577,500.0,0.00011509,2]
[400164344,1767163713615,500.0,0.00011509,2]
[400164345,1767163713649,500.0,0.00011509,2]
[400164346,1767163713688,178.89183246,0.00011509,2]
[400164347,1767163713726,500.0,0.00011509,2]
[400164348,1767163713756,500.0,0.00011509,2]
[400164349,1767163713796,500.0,0.00011509,2]
[400164350,1767163713828,500.0,0.00011509,2]
[400164351,1767163713859,500.0,0.00011509,2]
[400164352,1767163713905,500.0,0.00011509,2]
[400164353,1767163713941,500.0,0.00011509,2]
[400164354,1767163713974,500.0,0.00011509,2]
[400164355,1767163714010,500.0,0.00011509,2]
[400164356,1767163742499,300.0,0.00011509,2]
[400164357,1767163742742,2149.36686018,0.0001151,2]
[400164358,1767163742767,2850.63313982,0.0001151,2]
[400164359,1767163745137,-258.99381174,0.0001151,2]
[400164360,1767163745160,-35539.51220432,0.0001151,2]
[400164361,1767163749470,7149.37686018,0.00011411,2]
[400164362,1767163749502,10000.01,0.00011411,2]
[400164363,1767163749534,10000.01,0.00011411,2]
[400164364,1767163749565,10000.01,0.00011411,2]
[400164365,1767163749595,10000.01,0.00011411,2]
[400164366,1767163749627,10000.01,0.00011411,2]
[400164367,1767163749656,10000.01,0.00011411,2]
[400164368,1767163749686,10000.01,0.00011411,2]
[400164369,1767163749719,10000.01,0.00011411,2]
[400164370,1767163749749,10000.01,0.00011411,2]
[400164371,1767163750770,-159.7929275,0.00011411,2]
[400164372,1767163753590,-340.51792045,0.00011411,2]
[400164373,1767163758844,-639.41770508,0.00011297,2]
[400164374,1767163759088,-4360.58229492,0.00011297,2]
[400164375,1767163761506,-368.19767936,0.00011411,2]
[400164376,1767163766128,5000.0,0.00011401,2]
[400164377,1767163766542,-283.26051681,0.00011411,2]
[400164378,1767163768562,-237.91373876,0.00011411,2]
[400164379,1767163771210,-265.30094976,0.00011411,2]
[400164380,1767163774409,-152.75810031,0.00011411,2]
[400164381,1767163776358,-500.0,0.00011411,2]
[400164382,1767163782406,-442.22031156,0.00011411,2]
[400164383,1767163789580,5000.0,0.00011401,2]
[400164384,1767163812473,0.01,0.00011401,2]
[400164385,1767163812504,4999.99,0.00011401,2]
[400164386,1767163816542,-178.0,0.0001141,2]
[400164387,1767163816567,-179.80510649,0.0001141,2]
[400164405,1767163832607,-500.0,0.0001141,2]
[400164406,1767163832617,-34.64380724,0.0001141,2]
[400164407,1767163832629,-346.22849053,0.0001141,2]
[400164408,1767163832638,-370.81969244,0.0001141,2]
[400164409,1767163835589,5000.0,0.00011401,2]
[400164423,1767163838687,-388.07883697,0.0001141,2]
[400164424,1767163838697,-758.89852941,0.0001141,2]
[400164425,1767163838707,-758.89852941,0.0001141,2]
[400164426,1767163838716,-758.89852941,0.0001141,2]
[400164427,1767163838725,-500.0,0.0001141,2]
[400164428,1767163838735,-585.1280236,0.0001141,2]
[400164429,1767163838744,-758.89852941,0.0001141,2]
[400164430,1767163838754,-500.0,0.0001141,2]
[400164431,1767163838763,-758.89852941,0.0001141,2]
[400164432,1767163838773,-758.89852941,0.0001141,2]
[400164433,1767163838783,-643.63476092,0.0001141,2]